Workbook

Sheet VEJLEDNING
B2: Dette værktøj er udarbejdet af Movia i samarbejde med Trafikselskaberne i Danmark og Trafikstyrelsen.
B3: Værktøjet er udviklet til beregning af merpris ved anvendelse af emissionsfri busser sammenholdt med diesel
B4: Værktøjet består af fanebladene: COCKPIT, BEREGNINGSARK, INPUT_DATA og LISTER (skjult).
B5: Alle brugerdata angives i COCKPIT. COCKPIT viser alle beregningsforudsætninger, og brugeren har mulighed for at angive egne data.
B6: Inputværdier, som er markeret med ? er nødvendige at angive.
B7: Værdier markeret med ! er omkostningsdrivende, og det anbefales at der anvendes brugerdata.
B8: Hvis køreplantimeantallet ikke angives (?!) skal årlige rutekilometer i stedet angives.
B9: Værktøjets brugerværdier kan nulstilles ved at trykke "Nulstil alle værdier"-knappen.
B10: Alle beregninger foretages i beregningsarket.
B11: Værktøjet understøtter følgende bustyper: dieselbusser, som anvender diesel, elbusser med HVO-fyr til kabineopvarmning (elbus, HVO-fyr), elbusser med emissionsfri kabineopvarmning (elbus, 0-emis. kabineopv.), endestationsopladte elbusser (elbus, endestation) og brintbusser.
B12: Ved anvendelse af brintbusser og endestationsopladte elbusser, anbefales det at indhente faktiske priser fra leverandører, da modelberegnerens datagrundlag er usikkert.
B13: Drivmiddelpriser er baseret på operatørernes omkostninger til drivmidler i foråret 2024.
B14: Det kan variere fra projekt til projekt, hvad der er den billigste løsning. For at finde den løsning med den laveste modelberegede pris, er det nødvendigt at sammenligne beregningerne for de forskellige løsninger. Den billigste løsning vil normalt være elbus med HVO-fyr og elbusser med emissionsfri kabineopvarmning.
B15: NB. Undlad at benytte programmet med ekstern monitor, da det kan forstyrre knapper mv.
B16: Værktøjet benytter makroer. Du skal derfor aktivere makroer.
B18: Version 4
B19: Opdateret 13. juni 2024

Sheet COCKPIT
C3: Kode til ark:TBB2023 | E3: ØNSKET LØSNING | L3: REFERENCE LØSNING
E4: BRUGERVÆRDI | G4: STANDARDVÆRDI | L4: BRUGERVÆRDI | N4: STANDARDVÆRDI
B5: PROJEKTTYPE
B7: drivmiddel | D7: ? | I7: drivmiddel | N7: diesel | P7: Elbus, HVO-fyr
B9: kørselstype | D9: ? | I9: kørselstype | N9: =KørTyp -> Bybusser, provins/forstad | P9: Bybusser, provins/forstad
B11: kontraktlængde | C11: år | D11: ? | I11: kontraktlængde | J11: år | N11: =ÅrØns -> 0
B13: projektlængde | C13: år | D13: ?
B15: linje/kontraktenhed
B17: BUSDATA
B18: driftsbusser | C18: stk. | D18: ?
B20: buslængde | C20: m | D20: ? | I20: buslængde | J20: m | N20: =BusLænØns -> 11,9-12,8 | P20: 11,9-12,8
B22: køreplanstimer | C22: timer/år | D22: ?! | I22: årskørsel | J22: timer/år | N22: =TimÅrØns -> 0
B24: rutekm | C24: km/år | D24: ! | G24: =TimÅrØns*INDEX(kmT,1,KørTypOps) -> 0 | I24: årskørsel | J24: km/år | N24: =IF(RutKmØnsVær>0,RutKmØnsVær,TimRef*INDEX(kmT,1,KørTypOps)) -> 0
B26: tomkørsel | C26: km/år | G26: =INDEX(TomKmOps,1,MATCH(KørTyp,KØRSELSTYPE,0))*RutKmØns -> 0 | I26: tomkørsel | J26: km | N26: =INDEX(TomKmOps,1,MATCH(KørTyp,KØRSELSTYPE,0))*RutkmRef -> 0
B28: total busser (inkl. reserve og indskud) | C28: stk. | D28: ! | G28: =DriBusVær+ROUNDUP((DriBusVær+1)/ResBusAnd,0)+IF(OR(drivmiddel=El_fyr,drivmiddel=El_el,drivmiddel=ElBy),ROUNDUP(DriBusVær/EksBusFak,0)*INDEX((Ind_10m,Ind_12m,Ind_13m,Ind_15m,Ind_18m),MATCH(RutKmPrDri,RutKmOps,1),KørTypOps,BusLænOps),0) ->  | I28: antal busser | J28: stk. | N28: =DriBusVær+ROUNDUP((DriBusVær+1)/ResBusAnd,0) -> 1
B30: årskørsel (inkl. tomkørsel) | C30: km/år/bus | G30: =(RutKmØns+TomKmØns)/BusAnt ->  | I30: årskørsel (inkl. tomkørsel) | J30: km/år/bus | N30: =(RutkmRef+TomKmRef)/BusAntRef -> 0
B32: rente | C32: % pa | G32: =Rente -> 0.05
B34: klimaanlæg | G34: =JA -> ja | I34: klimaanlæg | N34: =IF(ØnsKlima="","nej",ØnsKlima) -> ja
B36: buspris (ekskl. moms) | C36: kr./bus | G36: =IF(ISNUMBER(INDEX(BUSPRIS,BusLænOps,DriOps)+IF(ØnsKlima=JA,INDEX(KlimaanlægPris,BusLænOps,DriOps),0)),INDEX(BUSPRIS,BusLænOps,DriOps)+IF(ØnsKlima=JA,INDEX(KlimaanlægPris,BusLænOps,DriOps),0),"INGEN DATA") -> 3350000 | I36: buspris | J36: kr./bus | N36: =INDEX(DIESELBUSPRIS,BusLænOps,KørTypOps)+IF(RefKlima=JA,INDEX(KlimaAnlægDiesel,BusLænOps,KørTypOps),0) -> 1700000
B38: moms, fradragsret busser | C38: % af moms | G38: =MomsFraBus -> 
B40: restværdi | C40: kr./bus | G40: =INDEX(Restværdi,DriOps,ROUNDUP(ÅrØns,0))*BusPriØns+IF(OR(drivmiddel=El_fyr,drivmiddel=El_el,drivmiddel=ElBy),INDEX(Restværdi,6,ÅrØns)*BatUds,0) ->  | I40: restværdi | J40: kr./bus | N40: =INDEX(Restværdi,5,ÅrRef)*BusPriRef -> 1190000 | O40: 1020000 | P40: 850000 | Q40: 680000 | R40: 510000 | S40: 340000 | T40: 286166.6667 | U40: 232333.3333 | V40: 178500 | W40: 124666.6667 | X40: 70833.33333 | Y40: 17000 | Z40: 0 | AA40: 0 | AB40: 0
B42: forsikring | C42: kr./bus/år | G42: =BusPriØns*Forsikring -> 41875 | I42: forsikring | J42: kr./bus/år | N42: =BusPriRef*Forsikring -> 21250
B44: service (inkl. moms) | C44: kr./km | G44: =ÅrsKm*INDEX((SerP11,SerP12,SerP13,SerP15,SerP18),DriOps,ROUND(ÅrØns,0),BusLænOps) ->  | I44: service | J44: kr./km | N44: =ÅrsKmRef*INDEX((SerP11,SerP12,SerP13,SerP15,SerP18),5,ROUND(ÅrRef,0),BusLænRefOps) -> 
B46: skader (inkl. moms) | C46: kr./år/bus | G46: =INDEX(SkaMat,KørTypOps)*kmÅrØns/SkaKmÅr ->  | I46: skader | J46: kr./år/bus | N46: =INDEX(SkaMat,KørTypOps)*kmÅrØns/SkaKmÅr -> 
B48: dæk, levetid | C48: km | G48: =INDEX(dæklevetid__km,1,DriOps) -> 76000 | N48: =DækLeve -> 95000
B50: dæk (inkl. moms) | C50: kr./stk. | G50: =DækPri -> 3000
B52: forbrug, fremdrift + opvarmning | C52: =INDEX(FORBRUG,DriOps,2) -> kWh/km | G52: =INDEX((FORB_BY_PROV,FORB_BY_KØB,FORB_LAND),BusLænOps,DriOps,KørTypOps) -> 1 | I52: forbrug, fremdrift + opvarmning | J52: km/l | K52: ! | N52: =INDEX((FORB_BY_PROV,FORB_BY_KØB,FORB_LAND),BusLænRefOps,5,KørTypOps) -> 3.271142857
B54: forbrug, opvarmning | C54: liter HVO/km | G54: =IF(drivmiddel=El_fyr,INDEX((FORB_BY_PROV,FORB_BY_KØB,FORB_LAND),BusLænOps,6,KørTypOps),0) -> 0.01363636364
B56: garageanlæg (inkl. moms) | C56: kr./år | G56: =INDEX(GarKrPrBusPrÅr,1,KørTypOps)*INDEX(BusLænPct,1,BusLænOps)*DriBus -> 0 | I56: garageanlæg (inkl. moms) | J56: kr./år | N56: =INDEX(GarKrPrBusPrÅr,1,KørTypOps)*INDEX(BusLænPct,1,BusLænRefOps)*DriBus -> 0
B58: chaufførløn | C58: kr./køreplanstime | G58: =INDEX((KplKrMatPro,KplKrMatKbh,KplKrMatLan),1,MATCH(TimØns/DriBusVær,KplKr,1),KørTypOps) -> 
B60: pausefaciliteter (inkl. moms) | C60: kr./driftsbus/år | G60: =PauFacPris -> 17000
B62: busrengøring (inkl. moms) | C62: kr./driftsbus/år | G62: =RenBusPris -> 30000
B64: batteriudskiftning (ekskl. moms) | C64: kr./bus | G64: =IF(ForEl*kmÅrØns*ÅrØns>kWhBatUds,INDEX(BatPris,1,BusLænOps),0) -> 
B66: LADEINFRASTRUKTUR
B67: ladeeffekt, depot | C67: kW/lader | G67: =IF(OR(drivmiddel=El_fyr,drivmiddel=El_el),Eff_150,IF(drivmiddel=ElBy,LISTER!K3,0)) -> 150 (2*75)
B69: ladetab, depot | C69: % | G69: =LadTabDep -> 0.12
B71: antal ladere, depot | C71: stk. | G71: =(BusAnt-ROUND(BusAnt/ResBusAnd,0))*INDEX(DepPris,MATCH(EffDepLad,EFFEKT_DEPOT,0),8) -> 
B73: depotlader, pris (ekskl. moms) | C73: kr./stk. | G73: =INDEX(DepPris,MATCH(EffDepLad,EFFEKT_DEPOT,0),1) -> 375000
B75: depotlader, installation (ekskl. moms) | C75: kr./første lader | G75: =INDEX(DepPris,MATCH(EffDepLad,EFFEKT_DEPOT,0),2) -> 275000
B77: depotlader, installation (ekskl. moms) | C77: kr./anden lader | G77: =INDEX(DepPris,MATCH(EffDepLad,EFFEKT_DEPOT,0),3) -> 200000
B79: depotlader, nettilslutning | C79: Ampere | G79: =INDEX(AmpOpsMat,1,MATCH(AmpBer,AmpOpsMat,-1)) -> 
B81: depotlader, nettilslutning (ekskl. moms) | C81: kr./Amp. | G81: =AmpPris -> 1330
B83: moms, fradragsret ladeinfrastruktur | C83: % af moms | G83: =MomsFraGar -> 0
B85: depotlader, service (inkl. moms) | C85: kr./stk./år | G85: =INDEX(DepPris,MATCH(EffDepLad,EFFEKT_DEPOT,0),7) -> 16250
B87: ladeeffekt, byrum | C87: kW/lader | G87: =IF(drivmiddel=ElBy,kW_450,0) -> 0
B89: antal ladere, byrum | C89: stk. | G89: =ROUNDUP((BusAnt-ROUNDUP(BusAnt/ResBusAnd,0))*LadPerBus+1,0) -> 
B91: byrumlader, pris (ex moms) | C91: kr./lader | G91: =INDEX(ByPris,MATCH(EffBy,EFFEKT_BYRUM,0),1) -> 
B93: moms, fradragsret | C93: % af moms | G93: =MomsFraBy -> 0
B95: byrumlader, service (inkl. moms) | C95: kr./lader | G95: =INDEX(ByPris,MATCH(EffBy,EFFEKT_BYRUM,0),2) -> 
B97: DRIVMIDLER MV
B98: diesel (inkl. moms) | C98: kr./l | G98: =DieselPris -> 11.3 | I98: Baseret på 2024-priser inkl. afgiftsstigning i 2025 på 0,5 kr./l
B100: HVO (inkl. moms) | C100: kr./l | G100: =HVOPris -> 19.1 | I100: Baseret på 2024-priser
B102: el (inkl. moms) | C102: kr./kWh | G102: =ElPris -> 1.2 | I102: Baseret på 2024-priser
B104: brint (inkl. moms) | C104: kr./kg H2 | G104: =INDEX(BrintKrMat,1,MATCH(RutKmPrDri,BrintKmMat,1)) -> 
B106: AdBlue, pris | C106: kr./l | G106: =AddBluPris -> 5
B108: AdBlue, forbrug | C108: % dieselforbrug | G108: =AddBluFor -> 0.07
B110: olie, pris | C110: kr./l | G110: =OliePri -> 75
B112: olie, forbrug | C112: % dieselforbrug | G112: =OlieFor -> 0.002
B115: chaufførbiler (inkl. moms) | C115: kr./år | G115: =DriBus*PbilPrPus*kmPrPbil*PBilKrPrKm -> 0
B117: afkastningsgrad inkl. risikotillæg | C117: % | G117: =Afkast -> 0.05
B119: STØTTEBELØB MV
B121: merpris for ønsket løsning | C121: kr./år | G121: =MerPrisÅr -> 
B123: merpris for ønsket løsning | C123: kr. i projektperiode | G123: =MerPrisPer -> 
B125: støtteprocent | C125: % | G125: 0.5
B127: støttebeløb | C127: kr. | G127: =StøBel -> 
B129: egenfinansiering | C129: kr. | G129: =EgeFin -> 
B131: Reduktion, udledning CO2 (tank-til-hjul) | C131: tons/år | G131: =RedCO2Ton -> 
B133: Reduktion, udledning CO2 (tank-til-hjul) | C133: tons/projektperiode | G133: =RedCO2TonPro -> 
B135: Omkostning, reduktion CO2 (tank-til-hjul) | C135: kr./tons | G135: =RedCO2Kr -> 

Sheet BEREGNINGSARK
A1: RUTEDATA | C1: ØNSKET LØSNING | D1: DIESELREFERANCE
A2: buslinje/kontraktenhed | C2: =BusLinVær -> 0
A3: buslængde | C3: =buslægdeØ -> 11,9-12,8 | D3: =IF(ISTEXT(buslægdeRef),buslægdeRef,BusLænrefStan) -> 11,9-12,8 | G3: Indtastet værdi
A4: rutekm | B4: km/år | C4: =IF(ISNUMBER(RutKmØnsVær),RutKmØnsVær,RutKmØnsStan) -> 0 | D4: =IF(ISNUMBER(RutKmRefVær),RutKmRefVær,RutKmRefStan) -> 0 | G4: Beregninget værdi
A5: tomkørsel | B5: km/år | C5: =IF(ISNUMBER(TomKmØnsVær),TomKmØnsVær,TomKmØnsStan) -> 0 | D5: =IF(ISNUMBER(TomKmRefVær),TomKmRefVær,TomKmRefStan) -> 0 | G5: Summeret budgetpost (beregnet værdi)
A6: rutekm | B6: km/år/driftsbus | C6: =RutKmØns/DriBusVær ->  | D6: =RutkmRef/DriBus ->  | G6: Total omkostning per år
A7: årskørsel | B7: km/bus/år | C7: =kmÅrØnsStan ->  | D7: =kmÅrRefStan -> 0
A8: =COCKPIT!B115 -> chaufførbiler (inkl. moms) | B8: kr./år | C8: =IF(ISNUMBER(PBilKmØnsVær),PBilKmØnsVær,PBilKmØnsStan) -> 0
A9: kørselstype | C9: =kørselØ -> Bybusser, provins/forstad
A10: kontraktlængde (afskrivning) | B10: år | C10: =kontraktlængdeØ -> 0 | D10: =IF(ISNUMBER(kontraktlængdeRef),kontraktlængdeRef,KonLænRef) -> 0
A11: projektlængde | B11: år | C11: =ProjLæn -> 0
A12: køreplanstimer | B12: timer/år | C12: =TimÅrØns -> 0 | D12: =IF(ISNUMBER(TimÅrRef),TimÅrRef,TimÅrRefStan) -> 0
A13: rente | B13: % pa | C13: =IF(ISNUMBER(RentePAVær),RentePAVær,RentePAStand) -> 0.05 | D13: =RenØns -> 0.05
A14: drivmiddel | C14: =drivmiddel -> Elbus, HVO-fyr | D14: DIESEL
A15: BUSMATERIEL
A16: bus, driftsbusser, antal | B16: stk. | C16: =DriBusVær -> 0
A17: bus, total, antal | B17: stk. | C17: =IF(ISNUMBER(busantalØ),busantalØ,BusAntStan) ->  | D17: =IF(ISNUMBER(busantalRef),busantalRef,BusAntRefStan) -> 1
A18: bus, pris | B18: kr./bus | C18: =IF(ISNUMBER(BusØnsPrisVær),BusØnsPrisVær,BusØnsPrisRef) -> 3350000 | D18: =IF(ISNUMBER(BusrefPrisVær),BusrefPrisVær,BusRefPrisStand) -> 1700000
A19: klimaanlæg | C19: =IF(KlimaØnsVærd<>"",KlimaØnsVærd,KlimaØnsStand) -> ja | D19: =IF(klimaRef="ja",klimaRef,IF(klimaRef="nej",klimaRef,KlimaRefStand)) -> ja
A20: busser, investering | B20: kr. | C20: =BusPriØns*BusAnt ->  | D20: =BusPriRef*BusAntRef -> 1700000
A21: ydelse | B21: kr./år | C21: =-PMT(C13,C10,C20) ->  | D21: =-PMT($D13,$D10,$D20) -> 
A22: moms | B22: kr./bus | C22: =0.25*C18 -> 837500 | D22: =0.25*D18 -> 425000
A23: =COCKPIT!B38 -> moms, fradragsret busser | B23: % | C23: =IF(ISNUMBER(MomsBusFraVær),MomsBusFraVær,MomsBusFraStand) -> 
A24: =COCKPIT!B38 -> moms, fradragsret busser | B24: kr./bus | C24: =-BusMomFraØnsPct*BusMomØns ->  | D24: =-IF(ISNUMBER(MomsBusFraVær),MomsBusFraVær,MomsBusFraStand)*D22 -> 
A25: moms | B25: kr./år | C25: =BusAnt*(BusMomØns+BusMomFraØns)/ÅrØns ->  | D25: =BusAntRef*(BusMomref+BusMomFraRef)/ÅrRef -> 
A26: restværdi | B26: kr./bus | C26: =-IF(ISNUMBER(RestØnsVær),RestØnsVær,RestØnsStand) ->  | D26: =-IF(ISNUMBER(RestRefVær),RestRefVær,RestRefStand) -> -1190000
A27: restværdi | B27: kr./år | C27: =BusAnt*ResBusØnsAnv/ÅrØns ->  | D27: =BusAntRef*ResBusRefAnv/ÅrRef -> 
A28: forsikring | B28: kr./år/bus | C28: =IF(ISNUMBER(ForsØnsVær),ForsØnsVær,ForsØnsStand) -> 41875 | D28: =IF(ISNUMBER(ForsRefVær),ForsRefVær,ForsRefStand) -> 21250
A29: forsikring | B29: kr./år | C29: =BusAnt*C28 ->  | D29: =BusAntRef*D28 -> 21250
A30: batteriudskiftning | B30: kr./bus | C30: =IF(OR(drivmiddel=El_fyr,drivmiddel=El_el,drivmiddel=ElBy),IF(ISNUMBER(BatUdVær),BatUdVær,BatUdStand),0) -> 
A31: moms | B31: kr./bus | C31: =BatUds*25% -> 
A32: =A24 -> moms, fradragsret busser | B32: kr./bus | C32: =-BusMomFraØnsPct*BatUdsMoms -> 
A33: batteriudskiftning | B33: kr./år | C33: =BusAnt*(BatUds+BatUdsMoms+BatUdsFraMoms)/ÅrØns -> 
A34: LADE-/FYLDESTATION, DEPOT
A35: ladere, effekt | B35: kW | C35: =IF(OR(drivmiddel=El_fyr,drivmiddel=El_el,drivmiddel=ElBy),IF(kWdepVær>0,kWdepVær,kWdepStand),0) -> 150 (2*75)
A36: ladere | B36: stk. | C36: =IF(OR(drivmiddel=El_fyr,drivmiddel=El_el,drivmiddel=ElBy),IF(ISNUMBER(nLadDepVær),nLadDepVær,nLadDepStand),0) -> 
A37: lader, pris | B37: kr./stk. | C37: =IF(ISNUMBER(DepPrisVær),DepPrisVær,DepPrisStand) -> 375000
A38: ladere, investering | B38: kr. | C38: =DepLadStk*C37 -> 
A39: 1. lader, installation | B39: kr./lader | C39: =IF(ISNUMBER(DepIns1LadVær),DepIns1LadVær,DepIns1LadStan) -> 275000
A40: 2. lader, installation | B40: kr./lader | C40: =IF(ISNUMBER(DepIns2LadVær),DepIns2LadVær,DepIns2LadStan) -> 200000
A41: installation, ladere | B41: kr. | C41: =C39+(DepLadStk-1)*C40 -> 
A42: pris ladere+installation | B42: kr. | C42: =C38+C41+C48 -> 
A43: moms ladere+installation | B43: kr. | C43: =0.25*C42 -> 
A44: momsfradrag ladere+installation | B44: kr. | C44: =-IF(ISNUMBER(MomsGarFraVær),MomsGarFraVær,MomsGarFraStand)*C43 -> 
A45: ladere+installation, ydelse | B45: kr./år | C45: =IF(OR(drivmiddel=El_fyr,drivmiddel=El_el,drivmiddel=ElBy),-PMT(RenØns,ÅrØns,(SUM(C42:C44))),0) -> 
A46: nettilslutning | B46: Amp. | C46: =IF(ISNUMBER(DepLadEffVær),DepLadEffVær,DepLadEffStan) -> 
A47: nettilslutning | B47: kr./Amp. | C47: =IF(ISNUMBER(AmpPrisVær),AmpPrisVær,AmpPrisStand) -> 1330
A48: nettilslutning | B48: kr. | C48: =DepLadEff*C47 -> 
A49: moms nettilslutning | B49: kr. | C49: =0.25*C48 -> 
A50: momsfradrag nettilslutning | B50: % | C50: =IF(ISNUMBER(MomsGarFraVær),MomsGarFraVær,MomsGarFraStand) -> 0
A51: momsfradrag nettilslutning | B51: kr. | C51: =-C50*C49 -> 
A52: nettilslutning, ydelse | B52: kr./år | C52: =IF(OR(drivmiddel=El_fyr,drivmiddel=El_el,drivmiddel=ElBy),-PMT(RenØns,30,(SUM(C48:C51))),0) -> 
A53: lader, service | B53: kr./stk./år | C53: =IF(ISNUMBER(DepSerVær),DepSerVær,DepSerStan) -> 16250
A54: lader, service | B54: kr./år | C54: =IF(OR(drivmiddel=El_fyr,drivmiddel=El_el,drivmiddel=ElBy),DepLadStk*C53,0) -> 
A55: ladetab | B55: % | C55: =IF(ISNUMBER(LadTabGarVær),LadTabGarVær,LadTabGarStan) -> 0.12
A56: LADESTATION, BYRUM
A57: ladestation, byrum, effekt | B57: kW | C57: =IF(ISNUMBER(kWbyVær),kWbyVær,kWbyStan) -> 0
A58: ladestation, byrum | B58: stk. | C58: =IF(ISNUMBER(nLadByVær),nLadByVær,nLadByStand) -> 
A59: ladestation, byrum | B59: kr./stk. | C59: =IF(ISNUMBER(ByPrisVær),ByPrisVær,ByPrisStand) -> 
A60: ladestation, byrum, investering | B60: kr. | C60: =C58*C59 -> 
A61: moms | B61: kr./bus | C61: =0.25*ByLadPriSum -> 
A62: momsfradrag byrumslader | B62: % | C62: =IF(ISNUMBER(MomsByFraVær),MomsByFraVær,MomsByFraStand) -> 0
A63: momsfradrag byrumslader | B63: kr./bus | C63: =-C62*ByLadMoms -> 
A64: ladestation, ydelse | B64: kr./år | C64: =IF(drivmiddel=ElBy,-PMT(RenØns,ÅrØns,ByLadPriSum),0) -> 0
A65: ladestation, service | B65: kr./lader/år | C65: =_xlfn.SINGLE(IF(drivmiddel=ElBy,IF(ISNUMBER(_xlfn.SINGLE(BySerVær)),BySerVær,BySerStand),0)) -> 0
A66: ladestation, service | B66: kr./år | C66: =IF(drivmiddel=ElBy,C58*C65,0) -> 0
A67: DRIVMIDDEL
A68: el, pris (inkl. moms) | B68: kr./kWh | C68: =IF(ISNUMBER(ElVærd),ElVærd,ElStand) -> 1.2
A69: el, forbrug bus | B69: kWh/bus | C69: =ForEl*kmÅrØns*ÅrØns/BusAnt -> 
A70: el, forbrug fremdrift + opvarmning | B70: kWh/km | C70: =IF(OR(drivmiddel=El_fyr,drivmiddel=El_el,drivmiddel=ElBy),IF(ISNUMBER(ØnsForBrVæ),ØnsForBrVæ,ØnsForStand),0) -> 1
A71: el, forbrug fremdrift + opvarmning, inkl. ladetab | B71: kWh/km | C71: =(1+LadTab)*ForEl -> 1.12
A72: el, forbrug | B72: kWh/år | C72: =BusAnt*kmÅrØns*ForElMedTab -> 
A73: el, omkostning (inkl. moms) | B73: kr./år | C73: =IF(OR(drivmiddel=El_fyr,drivmiddel=El_el,drivmiddel=ElBy),C72*C68,0) -> 
A74: brint, pris (inkl. moms) | B74: kr./kg H2 | C74: =IF(ISNUMBER(H2Vær),H2Vær,H2Stan) -> 
A75: brint, forbrug | B75: kg H2/100 km | C75: =IF(drivmiddel=Brintbus,IF(ISNUMBER(ØnsForBrVæ),ØnsForBrVæ,ØnsForStand),0) -> 0
A76: brint, forbrug | B76: kg H2/år | C76: =BusAnt*kmÅrØns*H2For/100 -> 
A77: brint, omkostning (inkl. moms) | B77: kr./år | C77: =IF(drivmiddel=Brintbus,C76*C74,0) -> 0
A78: HVO, pris (inkl. moms) | B78: kr./l | C78: =IF(ISNUMBER(HVOVær),HVOVær,HVOStand) -> 19.1
A79: HVO-forbrug, opvarmning | B79: l/km | C79: =IF(ISNUMBER(ForOpvVær),ForOpvVær,ForOpvStand) -> 0.01363636364
A80: HVO-forbrug, opvarmning | B80: l/år | C80: =BusAnt*HVOkmOpv*kmÅrØns -> 
A81: HVO-forbrug, opvarmning | B81: kr./år | C81: =IF(OR(drivmiddel=El_fyr,drivmiddel=ElBy,drivmiddel=Brintbus),C80*PriHVO,0) -> 
A82: diesel, pris (inkl. moms) | B82: kr./l | D82: =IF(ISNUMBER(DieselVær),DieselVær,DieselStand) -> 11.3
A83: diesel, forbrug | B83: km/l | D83: =IF(ISNUMBER(RefForBrVæ),RefForBrVæ,RefForStand) -> 3.271142857
A84: diesel, forbrug | B84: l/år | D84: =BusAntRef*kmÅrRef/D83 -> 0
A85: diesel, omkostning (inkl. moms) | B85: kr./år | D85: =D84*D82 -> 0
A86: chaufførbiler | B86: kWh/år | C86: =PbilKwPrkm*kmPrPbil*PbilPrPus*DriBus -> 0 | D86: =PBilKWhÅr -> 0
A87: =COCKPIT!B$115 -> chaufførbiler (inkl. moms) | B87: kr./år | C87: =IF(ISNUMBER(PBilKmØnsVær),PBilKmØnsVær,PBilKmØnsStan) -> 0 | D87: =C87 -> 0
A88: =COCKPIT!B$115 -> chaufførbiler (inkl. moms) | B88: kr./år | C88: =C87 -> 0 | D88: =D87 -> 0
A89: ADDITIV
A90: AdBlue | B90: =B78 -> kr./l | D90: =IF(ISNUMBER(AdBluVær),AdBluVær,AdBluStan) -> 5
A91: AdBlueforbrug af dieselforbrug (km/l) | B91: % | D91: =IF(ISNUMBER(AdBluForVær),AdBluForVær,AdBluForStan) -> 0.07
A92: AdBlue | B92: l/år | D92: =D84*D91 -> 0
A93: AdBlue | B93: kr./år | D93: =D92*D90 -> 0
A94: OLIE
A95: Olie | B95: kr./l | D95: =IF(ISNUMBER(OliPriVær),OliPriVær,OliPriStan) -> 75
A96: Olieforbrug af dieselforbrug (km/l) | B96: % | D96: =IF(ISNUMBER(OliForVær),OliForVær,OliForStan) -> 0.002
A97: Olie | B97: l/år | D97: =D96*D84 -> 0
A98: Olie | B98: kr/år | D98: =D97*D95 -> 0
A99: DÆK
A100: Dæk levetid | B100: km | C100: =IF(ISNUMBER(DækLevØnsVær),DækLevØnsVær,DækLevØnsStand) -> 76000 | D100: =IF(ISNUMBER(DækLevRefVærVær),DækLevØnsVær,DækLevRefStand) -> 95000
A101: Pris pr. dæk | B101: kr./stk. | C101: =D101 -> 3000 | D101: =IF(ISNUMBER(DækPriVær),DækPriVær,DækPriStan) -> 3000
A102: dæk/køretøj | B102: stk. | C102: =INDEX(nDæk,MATCH(buslægdeØ,BUSLÆNGDE,0)) -> 6 | D102: =INDEX(nDæk,MATCH(BusLænRef,BUSLÆNGDE,0)) -> 6
A103: Årligt dækforbrug/bus | B103: % | C103: =C7/C100 ->  | D103: =D7/D100 -> 0
A104: Dæk | B104: kr./år | C104: =BusAnt*C101*C102*C103 ->  | D104: =BusAntRef*D101*D102*D103 -> 0
A105: SERVICE
A106: service | B106: kr./km | C106: =IF(ISNUMBER(SerØnsVær),SerØnsVær,SerØnsStan) ->  | D106: =IF(ISNUMBER(SerRefVær),SerRefVær,SerRefStan) -> 
A107: service | B107: kr./år | C107: =BusAnt*SerØns*kmÅrØns ->  | D107: =BusAntRef*SerRef*D7 -> 
A108: skader | B108: kr./bus/år | C108: =IF(ISNUMBER(SkaØnsVær),SkaØnsVær,SkaØnsStan) ->  | D108: =IF(ISNUMBER(SkaRefVær),SkaRefVær,SkaRefStan) -> 
A109: skader | B109: kr./år | C109: =DriBus*SkaBusØns ->  | D109: =DriBus*SkaBusRef -> 
A110: CHAUFFØRLØN
A111: chaufførløn | B111: kr./driftstime | C111: =IF(ISNUMBER(ChalønVær),ChalønVær,ChaLønStan) ->  | D111: =C111 -> 
A112: chaufførløn | B112: kr./år | C112: =C12*C111 ->  | D112: =D12*D111 -> 
A113: GARAGEANLÆG
A114: Garageanlæg | B114: kr./år | C114: =IF(ISNUMBER(GarAnlVærØns),GarAnlVærØns,GarAnlØnsStan) -> 0 | D114: =IF(ISNUMBER(GarAnlVærØns),GarAnlVærØns,GarAnlØnsStan) -> 0
A115: Garageanlæg | B115: kr./år | C115: =C114 -> 0 | D115: =D114 -> 0
A116: Rengøring | B116: kr./driftsbus/år | C116: =IF(ISNUMBER(RenBusVær),RenBusVær,RenBusStan) -> 30000 | D116: =C116 -> 30000
A117: Rengøring | B117: kr./år | C117: =C116*DriBus -> 0 | D117: =DriBus*D116 -> 0
A118: PAUSEFACILITETER
A119: Pausefaciliteter | B119: kr./driftsbus/år | C119: =IF(ISNUMBER(PauVær),PauVær,PauStan) -> 17000 | D119: =C119 -> 17000
A120: Pausefaciliteter | B120: kr./år | C120: =C119*DriBus -> 0 | D120: =DriBus*D119 -> 0
A121: AFKAST
A122: afkastningsgrad inkl. risikotillæg | B122: % | C122: =IF(ISNUMBER(AfkØns),AfkØns,AfkStan) -> 0.05 | D122: =C122 -> 0.05
A123: afkastningsgrad inkl. risikotillæg | B123: kr./år | C123: =C122*(BusYdeØns+ResVærØns+ForPriØns+BatUdsPri+LadDepPri+NetDepPri+LadDepSer+LadByPri+LadBySer+ElPriØns+BrintPrisØnsk+HVOOpvØns+PBilØns+DækPriØns+SerPriØns+SkaBusÅrØns+ChaPriØns+GarØns+RengØsk+PauØns+MomsØns) ->  | D123: =D122*(BusYdeRef+ResVærRef+ForPriRef+DiePriRef+PBilRef+AddPriRef+OliPriRef+DækPriRef+SerPriRef+SkaBusÅrRef+ChaPriRef+GarRef+RengRef+PauRef+MomsRef) -> 
A124: SAMLET
A125: samlet årlig omkostning | B125: kr./år | C125: =BusYdeØns+ResVærØns+ForPriØns+BatUdsPri+LadDepPri+NetDepPri+LadDepSer+LadByPri+LadBySer+ElPriØns+BrintPrisØnsk+HVOOpvØns+PBilØns+DækPriØns+SerPriØns+SkaBusÅrØns+ChaPriØns+AfkKrØns+GarØns+RengØsk+MomsØns+PauØns ->  | D125: =BusYdeRef+ResVærRef+ForPriRef+DiePriRef+PBilRef+AddPriRef+OliPriRef+DækPriRef+SerPriRef+SkaBusÅrRef+ChaPriRef+GarRef+AfkKrRef+RengRef+MomsRef+PauRef -> 
A126: MERPRIS
A127: merpris for ønsket løsning | B127: kr./år | C127: =SamÅrØns-SamÅrRef -> 
A128: merpris for ønsket løsning | B128: kr. i projektperiode | C128: =C11*C127 -> 
A129: støtteprocent | B129: % | C129: =IF(ISNUMBER(StøPctØns),StøPctØns,StøPctRef) -> 0.5
A130: støttebeløb | B130: 50% af merpris | C130: =C129*MerPrisPer -> 
A131: egenfinansiering | B131: 50% af merpris | C131: =(1-C129)*MerPrisPer -> 
A132: CO2e
A133: El | B133: =INPUT_DATA!B225 -> kg CO2e/kWh | C133: =KgCO2ekWh -> 0 | D133: =KgCO2ekWh -> 0
A134: Brint | B134: =INPUT_DATA!C225 -> kg CO2e/kg H2 | C134: =KgCO2eH2 -> 0
A135: HVO | B135: =INPUT_DATA!D225 -> kg CO2e/l | C135: =kgCO2eHVO -> 0
A136: Diesel | B136: =INPUT_DATA!E225 -> kg CO2e/l | D136: =kgCO2eB7 -> 2.44
A137: Emission | B137: ton CO2e/år | C137: =PBilKWhÅr*$C$133+ForHVOTot*$C$135+IF(OR(drivmiddel=El_fyr,drivmiddel=El_el,drivmiddel=ElBy),ForElTot*$C$133,ForH2Tot*$C$134) ->  | D137: =(PBilKWhÅrRef*D133+ForB7Tot*D136)/1000 -> 0
A138: Reduktion | B138: ton CO2e/år | C138: =D137-C137 -> 
A139: Reduktion | B139: ton CO2e/projektperi. | C139: =C11*RedCO2Ton -> 
A140: Reduktion | B140: kr./ton CO2e | C140: =MerPrisÅr/C138 -> 
A141: timepris | B141: kr./t | C141: =SamÅrØns/TimØns ->  | D141: =SamÅrRef/TimRef -> 
A142: KØREPLANTIMEAFHÆNGIGE | B142: kr./år | C142: =(ForPriØns+ElPriØns+BrintPrisØnsk+HVOOpvØns+C85+DækPriØns+(1-BatBusAfhPct)*BatUdsPri+(1-PctFasSerØns)*SerPriØns+SkaBusÅrØns+ChaPriØns)*(1+C122) ->  | D142: =(ForPriRef+D33+D73+D77+D81+DiePriRef+AddPriRef+OliPriRef+DækPriRef+(1-PctFasSerRef)*SerPriRef+SkaBusÅrRef+ChaPriRef)*(1+AfkPrc) -> 
A143: KØREPLANTIMEAFHÆNGIGE | B143: kr./t | C143: =C142/TimØns ->  | D143: =D142/TimRef -> 
A144: BUSAFHÆNGIGE | B144: kr./år | C144: =(BusYdeØns+ResVærØns+BatBusAfhPct*BatUdsPri+PctFasSerØns*SerPriØns)*(1+D122) ->  | D144: =(BusYdeRef+ResVærRef+PctFasSerRef*SerPriRef)*(1+AfkPrc) -> 
A145: BUSAFHÆNGIGE | B145: kr./t | C145: =C144/TimØns ->  | D145: =D144/TimRef -> 
A146: FASTE | B146: kr./år | C146: =(LadDepPri+NetDepPri+LadDepSer+LadByPri+LadBySer+PBilØns+GarØns)*(1+AfkPrc) ->  | D146: =(D45+D52+D54+D64+D66+PBilRef+GarRef)*(1+AfkPrc) -> 0
A147: FASTE | B147: kr./t | C147: =C146/TimØns ->  | D147: =D146/TimRef -> 

Sheet INPUT_DATA
A1: AFSKRIVNING
A2: år | B2: 1 | C2: 2 | D2: 3 | E2: 4 | F2: 5 | G2: 6 | H2: 7 | I2: 8 | J2: 9 | K2: 10 | L2: 11 | M2: 12 | N2: 13 | O2: 14 | P2: 15
A3: =El_fyr -> Elbus, HVO-fyr | B3: 0.7 | C3: =($B3-$G3)*4/5+$G3 -> 0.63 | D3: =($B3-$G3)*3/5+$G3 -> 0.56 | E3: =($B3-$G3)*2/5+$G3 -> 0.49 | F3: =($B3-$G3)*1/5+$G3 -> 0.42 | G3: 0.35 | H3: =($G3-$M3)*5/6+$M3 -> 0.295 | I3: =($G3-$M3)*4/6+$M3 -> 0.24 | J3: =($G3-$M3)*3/6+$M3 -> 0.185 | K3: =($G3-$M3)*2/6+$M3 -> 0.13 | L3: =($G3-$M3)*1/6+$M3 -> 0.075 | M3: 0.02 | N3: 0.01 | O3: 0 | P3: 0
A4: =El_el -> Elbus, 0-emis. opvarm. | B4: =B$3 -> 0.7 | C4: 0.63 | D4: 0.56 | E4: 0.49 | F4: 0.42 | G4: 0.35 | H4: 0.295 | I4: =($G4-$M4)*4/6+$M4 -> 0.24 | J4: =($G4-$M4)*3/6+$M4 -> 0.185 | K4: =($G4-$M4)*2/6+$M4 -> 0.13 | L4: =($G4-$M4)*1/6+$M4 -> 0.075 | M4: =M$3 -> 0.02 | N4: 0.01 | O4: 0 | P4: 0
A5: =ElBy -> Elbus, endestation | B5: =B$3 -> 0.7 | C5: 0.63 | D5: 0.56 | E5: 0.49 | F5: 0.42 | G5: 0.35 | H5: 0.295 | I5: 0.24 | J5: 0.185 | K5: 0.13 | L5: 0.075 | M5: 0.02 | N5: 0.01 | O5: 0 | P5: 0
A6: =Brintbus -> Brintbus | B6: 0.7 | C6: 0.63 | D6: 0.56 | E6: 0.49 | F6: 0.42 | G6: 0.35 | H6: 0.295 | I6: 0.24 | J6: 0.185 | K6: 0.13 | L6: 0.075 | M6: 0.02 | N6: 0.01 | O6: 0 | P6: 0
A7: Dieselbus | B7: 0.7 | C7: =($B7-$G7)*4/5+$G7 -> 0.6 | D7: =($B7-$G7)*3/5+$G7 -> 0.5 | E7: =($B7-$G7)*2/5+$G7 -> 0.4 | F7: =($B7-$G7)*1/5+$G7 -> 0.3 | G7: 0.2 | H7: =($G7-$M7)*5/6+$M7 -> 0.1683333333 | I7: 0.1366666667 | J7: 0.105 | K7: 0.07333333333 | L7: 0.04166666667 | M7: 0.01 | N7: 0 | O7: 0 | P7: 0
A8: Batteri | B8: 0 | C8: 0 | D8: 0 | E8: 0 | F8: 0 | G8: 0 | H8: 0 | I8: 0 | J8: =6/7 -> 0.8571428571 | K8: =5/7 -> 0.7142857143 | L8: =4/7 -> 0.5714285714 | M8: =3/7 -> 0.4285714286 | N8: =2/7 -> 0.2857142857 | O8: =1/7 -> 0.1428571429 | P8: 0
A10: BATTERIUDSKIFTNING
A11: år+ | B11: 8 | C11: 9-11,8 | D11: 11,9-12,8 | E11: 12,9-13,2 | F11: 14,5-15 | G11: 18-18,8
A12: kr. inkl moms | B12: 800000 | C12: =4000*kWh10m*0.2*1.25 -> 430000 | D12: =4000*kWh12m*0.2*1.25 -> 430000 | E12: =4000*kWh13m*0.2*1.25 -> 430000 | F12: =4000*kWh15m*0.2*1.25 -> 560000 | G12: =4000*kWh18m*0.2*1.25 -> 560000
A13: kWh | C13: 430 | D13: 430 | E13: 430 | F13: 560 | G13: 560
A15: Busafhængige | B15: 0.6
A17: BUSPRIS, EKSKL. MOMS
A18: BUSLÆNGDE | B18: =El_fyr -> Elbus, HVO-fyr | C18: =El_el -> Elbus, 0-emis. opvarm. | D18: =ElBy -> Elbus, endestation | E18: =Brintbus -> Brintbus | F18: Diesel, provins | G18: Diesel, København | H18: Diesel, landevej
A19: 9-11,8 | B19: 3275000 | C19: 3275000 | D19: 3275000 | E19: INGEN DATA | F19: 1625000 | G19: 1625000 | H19: 1625000
A20: 11,9-12,8 | B20: 3275000 | C20: 3275000 | D20: 3275000 | E20: 4175000 | F20: 1625000 | G20: 1625000 | H20: 1625000
A21: 12,9-13,2 | B21: 3475000 | C21: 3475000 | D21: 3475000 | E21: INGEN DATA | F21: 1825000 | G21: 1825000 | H21: 1825000
A22: 14,5-15 | B22: 3675000 | C22: 3675000 | D22: 3675000 | E22: INGEN DATA | F22: 2150000 | G22: 2150000 | H22: 2150000
A23: 18-18,8 | B23: 4570000 | C23: 4570000 | D23: 4570000 | E23: 5250000 | F23: 2375000 | G23: 2375000 | H23: 2375000
A25: KLIMAANLÆG PRIS, EKSKL. MOMS
A26: BUSLÆNGDE | B26: =El_fyr -> Elbus, HVO-fyr | C26: =El_el -> Elbus, 0-emis. opvarm. | D26: =ElBy -> Elbus, endestation | E26: =Brintbus -> Brintbus | F26: Diesel, provins | G26: Diesel, København | H26: Diesel, landevej
A27: 9-11,8 | B27: 75000 | C27: 250000 | D27: 75000 | E27: INGEN DATA | F27: 75000 | G27: 75000 | H27: 75000
A28: 11,9-12,8 | B28: 75000 | C28: 250000 | D28: 75000 | E28: 75000 | F28: 75000 | G28: 75000 | H28: 75000
A29: 12,9-13,2 | B29: 75000 | C29: 250000 | D29: 75000 | E29: INGEN DATA | F29: 75000 | G29: 75000 | H29: 75000
A30: 14,5-15 | B30: 75000 | C30: 250000 | D30: 75000 | E30: INGEN DATA | F30: 75000 | G30: 75000 | H30: 75000
A31: 18-18,8 | B31: 150000 | C31: 500000 | D31: 150000 | E31: 150000 | F31: 150000 | G31: 150000 | H31: 150000
A33: FORSIKRING, % NYPRIS PER ÅR
A34: 0.0125
A36: PRIS, DEPOTLADERE, EKSKL. MOMS
A37: kW | B37: PRIS | C37: INSTALLATION | E37: AMPERE | H37: SERVICE | I37: LADERE
C38: første (kr.) | D38: efterfølgende (kr.) | E38: 150000 | F38: 3 | G38: 1 | H38: kr./år | I38: stk.
B39: kr. ekskl. moms | C39: kr. ekskl. moms | D39: kr. ekskl. moms | E39: Amp/lader | F39: Amp/lader | G39: Amp/lader
A40: 50 | B40: 165000 | C40: =150000 -> 150000 | D40: 100000 | E40: 76.08695652 | F40: 79.71014493 | G40: 100 | H40: =6000*1.25 -> 7500 | I40: 1
A41: 60 (2*30) | B41: 200000 | C41: =150000 -> 150000 | D41: 100000 | E41: 91.30434783 | F41: 95.65217391 | G41: 100 | H41: =1.25*9000 -> 11250 | I41: 0.5
A42: 75 | B42: 240000 | C42: 200000 | D42: 125000 | E42: 114.1304348 | F42: 119.5652174 | G42: 125 | H42: =1.25*9000 -> 11250 | I42: 1
A43: 150 (2*75) | B43: 375000 | C43: 275000 | D43: 200000 | E43: 228.2608696 | F43: 239.1304348 | G43: 250 | H43: =1.25*13000 -> 16250 | I43: 0.5
A44: 240 (2*120) | B44: 450000 | C44: 300000 | D44: 200000 | E44: 365.2173913 | F44: 382.6086957 | G44: 400 | H44: =13000*1.25 -> 16250 | I44: 0.5
A46: AMPERE
A47: kr./Amp., ekskl. moms | B47: 1330
A48: A | B48: =DepLadStk*INDEX(AmpLaderMat,LadOps,MATCH(DepLadStk,LadNMat,-1)) -> 
A49: trin | B49: 16200 | C49: 16100 | D49: 16000 | E49: 15900 | F49: 15800 | G49: 15700 | H49: 15600 | I49: 15500 | J49: 15400 | K49: 15300 | L49: 15200 | M49: 15100 | N49: 15000 | O49: 14900 | P49: 14800 | Q49: 14700 | R49: 14600 | S49: 14500 | T49: 14400 | U49: 14300 | V49: 14200 | W49: 14100 | X49: 14000 | Y49: 13900 | Z49: 13800 | AA49: 13700 | AB49: 13600 | AC49: 13500 | AD49: 13400 | AE49: 13300 | AF49: 13200 | AG49: 13100 | AH49: 13000 | AI49: 12900 | AJ49: 12800 | AK49: 12700 | AL49: 12600 | AM49: 12500 | AN49: 12400 | AO49: 12300 | AP49: 12200 | AQ49: 12100 | AR49: 12000 | AS49: 11900 | AT49: 11800 | AU49: 11700 | AV49: 11600 | AW49: 11500 | AX49: 11400 | AY49: 11300 | AZ49: 11200 | BA49: 11100 | BB49: 11000 | BC49: 10900 | BD49: 10800 | BE49: 10700 | BF49: 10600 | BG49: 10500 | BH49: 10400 | BI49: 10300 | BJ49: 10200 | BK49: 10100 | BL49: 10000 | BM49: 9900 | BN49: 9800 | BO49: 9700 | BP49: 9600 | BQ49: 9500 | BR49: 9400 | BS49: 9300 | BT49: 9200 | BU49: 9100 | BV49: 9000 | BW49: 8900 | BX49: 8800 | BY49: 8700 | BZ49: 8600 | CA49: 8500 | CB49: 8400 | CC49: 8300 | CD49: 8200 | CE49: 8100 | CF49: 8000 | CG49: 7900 | CH49: 7800 | CI49: 7700 | CJ49: 7600 | CK49: 7500 | CL49: 7400 | CM49: 7300 | CN49: 7200 | CO49: 7100 | CP49: 7000 | CQ49: 6900 | CR49: 6800 | CS49: 6700 | CT49: 6600 | CU49: 6500 | CV49: 6400 | CW49: 6300 | CX49: 6200 | CY49: 6100 | CZ49: 6000 | DA49: 5900 | DB49: 5800 | DC49: 5700 | DD49: 5600 | DE49: 5500 | DF49: 5400 | DG49: 5300 | DH49: 5200 | DI49: 5100 | DJ49: 5000 | DK49: 4900 | DL49: 4800 | DM49: 4700 | DN49: 4600 | DO49: 4500 | DP49: 4400 | DQ49: 4300 | DR49: 4200 | DS49: 4100 | DT49: 4000 | DU49: 3900 | DV49: 3800 | DW49: 3700 | DX49: 3600 | DY49: 3500 | DZ49: 3400 | EA49: 3300 | EB49: 3200 | EC49: 3100 | ED49: 3000 | EE49: 2900 | EF49: 2800 | EG49: 2700 | EH49: 2600 | EI49: 2500 | EJ49: 2400 | EK49: 2300 | EL49: 2200 | EM49: 2100 | EN49: 2000 | EO49: 1900 | EP49: 1800 | EQ49: 1700 | ER49: 1600 | ES49: 1500 | ET49: 1400 | EU49: 1300 | EV49: 1200 | EW49: 1100 | EX49: 1000 | EY49: 900 | EZ49: 800 | FA49: 710 | FB49: 670 | FC49: 630 | FD49: 560 | FE49: 500 | FF49: 425 | FG49: 400 | FH49: 355 | FI49: 315 | FJ49: 300 | FK49: 275 | FL49: 250 | FM49: 225 | FN49: 200 | FO49: 175 | FP49: 150 | FQ49: 125 | FR49: 100
A51: LADETAB
A52: % | B52: 0.12
A54: PRIS, BYRUMSLADERE
A55: kW | B55: PRIS, kr./stk., inkl. installation, inkl. moms | C55: SERVICE, kr./pr./stk | D55: Ladere/bus, 1+
A56: 150 | B56: 3000000 | C56: 105000 | D56: =1/6 -> 0.1666666667
A57: 300 | B57: 3500000 | C57: 105000
A58: 450 | B58: 4000000 | C58: 115500
A59: 600 | B59: 4500000 | C59: 115500
A61: BYBUSSER, PROVINS | B61: =El_fyr -> Elbus, HVO-fyr | C61: =El_el -> Elbus, 0-emis. opvarm. | D61: Elbus, endestation | E61: =Brintbus -> Brintbus | F61: Diesel | G61: KABINEVARME
A62: BUSLÆNGDE | B62: kWh/km | C62: kWh/km | D62: kWh/km | E62: kg H2/100km | F62: km/l | G62: l HVO/km (HVO-fyr)
A63: 9-11,8 | B63: 0.95 | C63: =C$64*B63/B$64 -> 1.007 | D63: =D$64*C63/C$64 -> 1.007 | E63: INGEN DATA | F63: 3.3725 | G63: 0.01136363636
A64: 11,9-12,8 | B64: 1 | C64: 1.06 | D64: 1.06 | E64: 7.8 | F64: 3.271142857 | G64: 0.01363636364
A65: 12,9-13,2 | B65: 1.02 | C65: =C$64*B65/B$64 -> 1.0812 | D65: =D$64*C65/C$64 -> 1.0812 | E65: INGEN DATA | F65: 2.9 | G65: 0.01477272727
A66: 14,5-15 | B66: =B64*1.35 -> 1.35 | C66: =C$64*B66/B$64 -> 1.431 | D66: 1.431 | E66: INGEN DATA | F66: 2.1 | G66: 0.01704545455
A67: 18-18,8 | B67: =B64*1.47 -> 1.47 | C67: 1.5582 | D67: 1.5582 | E67: =E$64*B67/B$64 -> 11.466 | F67: 1.9 | G67: 0.02045454545
A69: BYBUSSER, KØBENAVN | B69: =El_fyr -> Elbus, HVO-fyr | C69: =El_el -> Elbus, 0-emis. opvarm. | D69: Elbus, endestation | E69: =Brintbus -> Brintbus | F69: Diesel | G69: KABINEVARME
A70: BUSLÆNGDE | B70: kWh/km | C70: kWh/km | D70: kWh/km | E70: kg H2/100 km | F70: l/km | G70: l HVO/km (depot)
A71: 9-11,8 | B71: =B63*1.05 -> 0.9975 | C71: =1.05*C63 -> 1.05735 | D71: =C71 -> 1.05735 | E71: INGEN DATA | F71: 3 | G71: 0.01315789474
A72: 11,9-12,8 | B72: 1.05 | C72: =1.05*C64 -> 1.113 | D72: =C72 -> 1.113 | E72: =E64*1.05 -> 8.19 | F72: 2.9 | G72: 0.01578947368
A73: 12,9-13,2 | B73: =B65*1.05 -> 1.071 | C73: =1.05*C65 -> 1.13526 | D73: 1.13526 | E73: INGEN DATA | F73: 2.8 | G73: 0.01710526316
A74: 14,5-15 | B74: =B66*1.05 -> 1.4175 | C74: 1.50255 | D74: 1.50255 | E74: INGEN DATA | F74: 1.9 | G74: 0.01973684211
A75: 18-18,8 | B75: =B67*1.05 -> 1.5435 | C75: 1.63611 | D75: 1.63611 | E75: =E67*1.05 -> 12.0393 | F75: 1.8 | G75: 0.02368421053
A77: LANDEVEJSBUSSER | B77: =El_fyr -> Elbus, HVO-fyr | C77: =El_el -> Elbus, 0-emis. opvarm. | D77: Elbus, endestation | E77: =Brintbus -> Brintbus | F77: Diesel | G77: KABINEVARME
A78: BUSLÆNGDE | B78: kWh/km | C78: kWh/km | D78: kWh/km | E78: kg H2/km | F78: l/km | G78: l HVO/km (depot)
A79: 9-11,8 | B79: =B63 -> 0.95 | C79: =C63*B79/B63 -> 1.007 | D79: =C79 -> 1.007 | E79: INGEN DATA | F79: 3.9 | G79: 0.007142857143
A80: 11,9-12,8 | B80: =B64 -> 1 | C80: =C64*B80/B64 -> 1.06 | D80: =C80 -> 1.06 | E80: =E64 -> 7.8 | F80: 3.7 | G80: 0.008571428571
A81: 12,9-13,2 | B81: =B65 -> 1.02 | C81: 1.0812 | D81: 1.0812 | E81: INGEN DATA | F81: 3.6 | G81: 0.009285714286
A82: 14,5-15 | B82: =B66 -> 1.35 | C82: 1.431 | D82: 1.431 | E82: INGEN DATA | F82: 2.7 | G82: 0.01071428571
A83: 18-18,8 | B83: =B67 -> 1.47 | C83: 1.5582 | D83: 1.5582 | E83: =E67 -> 11.466 | F83: 2.4 | G83: 0.01285714286
A85: MOMSFRADRAG | B85: Busmateriel | C85: Ladere, garage | D85: Ladere, byrum
A86: % | B86: =IF((ÅrØns-5)/ÅrØns>=0,(ÅrØns-5)/ÅrØns,0) ->  | C86: 0 | D86: 0 | E86: kontraktperiode (x-5)/x
C87: minus på ladere | D87: jord og grit det kan man ikke | F87: bedre med 0
B88: m | Z88: 11,9-12,8 | AP88: 12,9-13,2 | BF88: 14,5-15 | BV88: 18-18,8
A89: Service | B89: 1 år | C89: 2 år | D89: 3 år | E89: 5 år | F89: 6 år | G89: 7 år | H89: 8 år | I89: 9 år | J89: 10 år | K89: 11 år | L89: 12 år | M89: 13 år | N89: 14 år | O89: 15 år | Q89: 1 år | R89: 2 år | S89: 3 år | T89: 4 år | U89: 5 år | V89: 6 år | W89: 7 år | X89: 8 år | Y89: 9 år | Z89: 10 år | AA89: 11 år | AB89: 12 år | AC89: 13 år | AD89: 14 år | AE89: 15 år | AG89: 1 år | AH89: 2 år | AI89: 3 år | AJ89: 4 år | AK89: 5 år | AL89: 6 år | AM89: 7 år | AN89: 8 år | AO89: 9 år | AP89: 10 år | AQ89: 11 år | AR89: 12 år | AS89: 13 år | AT89: 14 år | AU89: 15 år | AW89: 1 år | AX89: 2 år | AY89: 3 år | AZ89: 4 år | BA89: 5 år | BB89: 6 år | BC89: 7 år | BD89: 8 år | BE89: 9 år | BF89: 10 år | BG89: 11 år | BH89: 12 år | BI89: 13 år | BJ89: 14 år | BK89: 15 år | BM89: 1 år | BN89: 2 år | BO89: 3 år | BP89: 4 år | BQ89: 5 år | BR89: 6 år | BS89: 7 år | BT89: 8 år | BU89: 9 år | BV89: 10 år | BW89: 11 år | BX89: 12 år | BY89: 13 år | BZ89: 14 år | CA89: 15 år
A90: =El_fyr -> Elbus, HVO-fyr | B90: =0.6*B94 -> 0.4935 | C90: 0.5655 | D90: 0.6255 | E90: 0.7275 | F90: 0.795 | G90: 0.8625 | H90: 0.93 | I90: 0.9975 | J90: 1.065 | K90: 1.1325 | L90: 1.2 | M90: 1.2 | N90: 1.2 | O90: =0.6*O94 -> 1.2 | Q90: =0.6*Q94 -> 0.4935 | R90: 0.5655 | S90: 0.6255 | T90: 0.6795 | U90: 0.7275 | V90: 0.795 | W90: =0.6*W94 -> 0.8625 | X90: =0.6*X94 -> 0.93 | Y90: 0.9975 | Z90: 1.065 | AA90: 1.1325 | AB90: 1.2 | AC90: 1.2 | AD90: 1.2 | AE90: 1.2 | AG90: =0.75*AG94 -> 0.616875 | AH90: 0.706875 | AI90: 0.781875 | AJ90: 0.849375 | AK90: 0.909375 | AL90: 0.99375 | AM90: 1.078125 | AN90: 1.1625 | AO90: 1.246875 | AP90: 1.33125 | AQ90: 1.415625 | AR90: =0.75*AR94 -> 1.5 | AS90: 1.5 | AT90: 1.5 | AU90: 1.5 | AW90: =0.6*AW94 -> 0.567525 | AX90: =0.6*AX94 -> 0.650325 | AY90: 0.719325 | AZ90: 0.781425 | BA90: 0.836625 | BB90: 0.91425 | BC90: 0.991875 | BD90: 1.0695 | BE90: 1.147125 | BF90: 1.22475 | BG90: 1.302375 | BH90: 1.38 | BI90: 1.38 | BJ90: 1.38 | BK90: 1.38 | BM90: =0.6*BM94 -> 0.616875 | BN90: =0.6*BN94 -> 0.706875 | BO90: 0.781875 | BP90: 0.849375 | BQ90: 0.909375 | BR90: 0.99375 | BS90: 1.078125 | BT90: 1.1625 | BU90: 1.246875 | BV90: 1.33125 | BW90: 1.415625 | BX90: 1.5 | BY90: 1.5 | BZ90: 1.5 | CA90: 1.5
A91: =El_el -> Elbus, 0-emis. opvarm. | B91: =B90 -> 0.4935 | C91: =C90 -> 0.5655 | D91: 0.6255 | E91: 0.7275 | F91: 0.795 | G91: 0.8625 | H91: 0.93 | I91: 0.9975 | J91: 1.065 | K91: 1.1325 | L91: 1.2 | M91: 1.2 | N91: 1.2 | O91: 1.2 | Q91: 0.4935 | R91: 0.5655 | S91: 0.6255 | T91: 0.6795 | U91: 0.7275 | V91: 0.795 | W91: 0.8625 | X91: 0.93 | Y91: 0.9975 | Z91: 1.065 | AA91: 1.1325 | AB91: 1.2 | AC91: 1.2 | AD91: 1.2 | AE91: 1.2 | AG91: 0.616875 | AH91: 0.706875 | AI91: 0.781875 | AJ91: 0.849375 | AK91: 0.909375 | AL91: 0.99375 | AM91: 1.078125 | AN91: 1.1625 | AO91: 1.246875 | AP91: 1.33125 | AQ91: 1.415625 | AR91: 1.5 | AS91: 1.5 | AT91: 1.5 | AU91: 1.5 | AW91: 0.567525 | AX91: 0.650325 | AY91: 0.719325 | AZ91: 0.781425 | BA91: 0.836625 | BB91: 0.91425 | BC91: 0.991875 | BD91: 1.0695 | BE91: 1.147125 | BF91: 1.22475 | BG91: 1.302375 | BH91: 1.38 | BI91: 1.38 | BJ91: 1.38 | BK91: 1.38 | BM91: 0.616875 | BN91: 0.706875 | BO91: =BO90 -> 0.781875 | BP91: 0.849375 | BQ91: 0.909375 | BR91: 0.99375 | BS91: 1.078125 | BT91: 1.1625 | BU91: 1.246875 | BV91: 1.33125 | BW91: 1.415625 | BX91: 1.5 | BY91: 1.5 | BZ91: 1.5 | CA91: 1.5
A92: =ElBy -> Elbus, endestation | B92: =B90 -> 0.4935 | C92: =C90 -> 0.5655 | D92: 0.6255 | E92: 0.7275 | F92: 0.795 | G92: 0.8625 | H92: 0.93 | I92: 0.9975 | J92: 1.065 | K92: 1.1325 | L92: 1.2 | M92: 1.2 | N92: 1.2 | O92: 1.2 | Q92: 0.4935 | R92: 0.5655 | S92: 0.6255 | T92: 0.6795 | U92: 0.7275 | V92: 0.795 | W92: 0.8625 | X92: 0.93 | Y92: 0.9975 | Z92: 1.065 | AA92: 1.1325 | AB92: 1.2 | AC92: 1.2 | AD92: 1.2 | AE92: 1.2 | AG92: 0.616875 | AH92: 0.706875 | AI92: 0.781875 | AJ92: 0.849375 | AK92: 0.909375 | AL92: 0.99375 | AM92: 1.078125 | AN92: 1.1625 | AO92: 1.246875 | AP92: 1.33125 | AQ92: 1.415625 | AR92: 1.5 | AS92: 1.5 | AT92: 1.5 | AU92: 1.5 | AW92: 0.567525 | AX92: 0.650325 | AY92: 0.719325 | AZ92: 0.781425 | BA92: 0.836625 | BB92: 0.91425 | BC92: 0.991875 | BD92: 1.0695 | BE92: 1.147125 | BF92: 1.22475 | BG92: 1.302375 | BH92: 1.38 | BI92: 1.38 | BJ92: 1.38 | BK92: 1.38 | BM92: 0.616875 | BN92: 0.706875 | BO92: =BO90 -> 0.781875 | BP92: 0.849375 | BQ92: 0.909375 | BR92: 0.99375 | BS92: 1.078125 | BT92: 1.1625 | BU92: 1.246875 | BV92: 1.33125 | BW92: 1.415625 | BX92: 1.5 | BY92: 1.5 | BZ92: 1.5 | CA92: 1.5
A93: =Brintbus -> Brintbus | B93: =S_11*Q93 -> 0.987 | C93: =S_11*R93 -> 1.131 | D93: =S_11*S93 -> 1.251 | E93: =S_11*U93 -> 1.455 | F93: =S_11*V93 -> 1.59 | G93: =S_11*W93 -> 1.725 | H93: =S_11*X93 -> 1.86 | I93: =S_11*Y93 -> 1.995 | J93: =S_11*Z93 -> 2.13 | K93: =S_11*AA93 -> 2.265 | L93: =S_11*AB93 -> 2.4 | M93: =S_11*AC93 -> 2.4 | N93: =S_11*AD93 -> 2.4 | O93: =S_11*AE93 -> 2.4 | Q93: =Q94*1.2 -> 0.987 | R93: =R94*1.2 -> 1.131 | S93: 1.251 | T93: 1.359 | U93: 1.455 | V93: 1.59 | W93: 1.725 | X93: 1.86 | Y93: 1.995 | Z93: 2.13 | AA93: 2.265 | AB93: 2.4 | AC93: 2.4 | AD93: 2.4 | AE93: 2.4 | AG93: =S_13*Q93 -> 0.987 | AH93: =S_13*R93 -> 1.131 | AI93: =S_13*S93 -> 1.251 | AJ93: =S_13*T93 -> 1.359 | AK93: =S_13*U93 -> 1.455 | AL93: =S_13*V93 -> 1.59 | AM93: =S_13*W93 -> 1.725 | AN93: =S_13*X93 -> 1.86 | AO93: =S_13*Y93 -> 1.995 | AP93: =S_13*Z93 -> 2.13 | AQ93: =S_13*AA93 -> 2.265 | AR93: =S_13*AB93 -> 2.4 | AS93: =S_13*AC93 -> 2.4 | AT93: =S_13*AD93 -> 2.4 | AU93: =S_13*AE93 -> 2.4 | AW93: =S_15*Q93 -> 1.13505 | AX93: =S_15*R93 -> 1.30065 | AY93: =S_15*S93 -> 1.43865 | AZ93: =S_15*T93 -> 1.56285 | BA93: =S_15*U93 -> 1.67325 | BB93: =S_15*V93 -> 1.8285 | BC93: =S_15*W93 -> 1.98375 | BD93: =S_15*X93 -> 2.139 | BE93: =S_15*Y93 -> 2.29425 | BF93: =S_15*Z93 -> 2.4495 | BG93: =S_15*AA93 -> 2.60475 | BH93: =S_15*AB93 -> 2.76 | BI93: =S_15*AC93 -> 2.76 | BJ93: =S_15*AD93 -> 2.76 | BK93: =S_15*AE93 -> 2.76 | BM93: =S_18*Q93 -> 1.23375 | BN93: =S_18*R93 -> 1.41375 | BO93: =S_18*S93 -> 1.56375 | BP93: =S_18*T93 -> 1.69875 | BQ93: =S_18*U93 -> 1.81875 | BR93: =S_18*V93 -> 1.9875 | BS93: =S_18*W93 -> 2.15625 | BT93: =S_18*X93 -> 2.325 | BU93: =S_18*Y93 -> 2.49375 | BV93: =S_18*Z93 -> 2.6625 | BW93: =S_18*AA93 -> 2.83125 | BX93: =S_18*AB93 -> 3 | BY93: =S_18*AC93 -> 3 | BZ93: =S_18*AD93 -> 3 | CA93: =S_18*AE93 -> 3
A94: Diesel | B94: =S_11*Q94 -> 0.8225 | C94: =S_11*R94 -> 0.9425 | D94: 1.0425 | E94: =S_11*U94 -> 1.2125 | F94: =S_11*V94 -> 1.325 | G94: 1.4375 | H94: 1.55 | I94: 1.6625 | J94: 1.775 | K94: 1.8875 | L94: 2 | M94: 2 | N94: 2 | O94: 2 | Q94: =R94-0.12 -> 0.8225 | R94: =S94-0.1 -> 0.9425 | S94: =T94-0.09 -> 1.0425 | T94: =U94-0.08 -> 1.1325 | U94: =$W94-($AB94-$W94)*2/5 -> 1.2125 | V94: =$W94-($AB94-$W94)*1/5 -> 1.325 | W94: =1.25*1.15 -> 1.4375 | X94: =($AB94-$W94)*1/5+$W94 -> 1.55 | Y94: =($AB94-$W94)*2/5+$W94 -> 1.6625 | Z94: =($AB94-$W94)*3/5+$W94 -> 1.775 | AA94: =($AB94-$W94)*4/5+$W94 -> 1.8875 | AB94: =1.6*1.25 -> 2 | AC94: =AB94 -> 2 | AD94: =AC94 -> 2 | AE94: 2 | AG94: =S_13*Q94 -> 0.8225 | AH94: 0.9425 | AI94: 1.0425 | AJ94: 1.1325 | AK94: 1.2125 | AL94: 1.325 | AM94: 1.4375 | AN94: 1.55 | AO94: 1.6625 | AP94: 1.775 | AQ94: 1.8875 | AR94: 2 | AS94: 2 | AT94: 2 | AU94: 2 | AW94: =S_15*Q94 -> 0.945875 | AX94: 1.083875 | AY94: 1.198875 | AZ94: 1.302375 | BA94: 1.394375 | BB94: 1.52375 | BC94: 1.653125 | BD94: 1.7825 | BE94: 1.911875 | BF94: 2.04125 | BG94: 2.170625 | BH94: 2.3 | BI94: 2.3 | BJ94: 2.3 | BK94: 2.3 | BM94: =S_18*Q94 -> 1.028125 | BN94: 1.178125 | BO94: 1.303125 | BP94: 1.415625 | BQ94: 1.515625 | BR94: 1.65625 | BS94: 1.796875 | BT94: 1.9375 | BU94: 2.078125 | BV94: 2.21875 | BW94: 2.359375 | BX94: 2.5 | BY94: 2.5 | BZ94: 2.5 | CA94: 2.5
A96: BUSLÆNGDE | B96: service pris % ift 12 m | C96: dæk
A97: 9-11,8 | B97: 1 | C97: 6
A98: 11,9-12,8 | B98: 1 | C98: 6
A99: 12,9-13,2 | B99: 1 | C99: 6
A100: 14,5-15 | B100: 1.15 | C100: 8
A101: 18-18,8 | B101: 1.25 | C101: 8
A103: Servicepris ift km/år | B103: % ift 12 m
A104: ="< "&B104 -> < 40000 | B104: 40000 | C104: 1.15
A105: =">="&B104&"; <"&B105 -> >=40000; <45000 | B105: 45000 | C105: =$C$110+($B$110-B105)/($B$110-$B$104)*($C$104-$C$110) -> 1.125
A106: >=45000; <50000 | B106: 50000 | C106: =$C$110+($B$110-B106)/($B$110-$B$104)*($C$104-$C$110) -> 1.1
A107: >=50000; <55000 | B107: 55000 | C107: =$C$110+($B$110-B107)/($B$110-$B$104)*($C$104-$C$110) -> 1.075
A108: >=55000; <60000 | B108: 60000 | C108: =$C$110+($B$110-B108)/($B$110-$B$104)*($C$104-$C$110) -> 1.05
A109: >=60000; <65000 | B109: 65000 | C109: =$C$110+($B$110-B109)/($B$110-$B$104)*($C$104-$C$110) -> 1.025
A110: >=65000; <70000 | B110: 70000 | C110: 1
A111: >=70000; <75000 | B111: 75000 | C111: 1
A112: >=75000; <80000 | B112: 80000 | C112: 1
A113: >=80000; <85000 | B113: 85000 | C113: 1
A114: >=85000; <90000 | B114: 90000 | C114: 1
A115: >=90000; <95000 | B115: 95000 | C115: 1
A116: >=95000; <100000 | B116: 100000 | C116: 1
A117: >=100000; <105000 | B117: 105000 | C117: 1
A118: >=105000; <110000 | B118: 110000 | C118: 1
A119: >=110000; <115000 | B119: 115000 | C119: 1
A120: >=115000; <120000 | B120: 120000 | C120: 1
A121: >=120000; <125000 | B121: 125000 | C121: 1
A122: >=125000; <130000 | B122: 130000 | C122: 1
A123: >=130000; <135000 | B123: 135000 | C123: 1
A124: >=135000; <140000 | B124: 140000 | C124: 1
A125: >=140000; <145000 | B125: 145000 | C125: 1
A126: =">"&B125 -> >145000 | B126: 150000 | C126: 1
A128: Ønsket løsning | B128: 1.15
A129: Reference | B129: 1.15
A130: % faste omkost, Ønsløsning | B130: =ÅrsKm-60% -> 0.55
A131: % faste omkost, Ref løsning | B131: =ÅrsKmRef-60% -> 0.55
B133: m | C133: 10 m | F133: 12 m | I133: 13 m | L133: 15 m | O133: 18 m
C134: =ByPro -> Bybusser, provins/forstad | D134: =ByKøb -> Bybusser, København | E134: =Land -> Landevejsbusser | F134: =ByPro -> Bybusser, provins/forstad | G134: =ByKøb -> Bybusser, København | H134: =Land -> Landevejsbusser | I134: =ByPro -> Bybusser, provins/forstad | J134: =ByKøb -> Bybusser, København | K134: =Land -> Landevejsbusser | L134: =ByPro -> Bybusser, provins/forstad | M134: =ByKøb -> Bybusser, København | N134: =Land -> Landevejsbusser | O134: =ByKøb -> Bybusser, København | P134: =ByPro -> Bybusser, provins/forstad | Q134: =Land -> Landevejsbusser
A135: <40000 | B135: 0 | C135: 0 | D135: 0 | E135: 0 | F135: 0 | G135: 0 | H135: 0 | I135: 0 | J135: 0 | K135: 0 | L135: 0 | M135: 0 | N135: 0 | O135: 0 | P135: 0 | Q135: 0
A136: =">="&B135&"; <"&B136 -> >=0; <45000 | B136: 45000 | C136: 0 | D136: 0 | E136: 0 | F136: 0 | G136: 0 | H136: 0 | I136: 0 | J136: 0 | K136: 0 | L136: 0 | M136: 0 | N136: 0 | O136: 0 | P136: 0 | Q136: 0
A137: >=45000; <50000 | B137: 50000 | C137: 0 | D137: 0 | E137: 0 | F137: 0 | G137: 0 | H137: 0 | I137: 0 | J137: 0 | K137: 0 | L137: 0 | M137: 0 | N137: 0 | O137: 0 | P137: 0 | Q137: 0
A138: >=50000; <55000 | B138: 55000 | C138: 0 | D138: 0 | E138: 0 | F138: 0 | G138: 0 | H138: 0 | I138: 0 | J138: 0 | K138: 0 | L138: 0 | M138: 0 | N138: 0 | O138: 0 | P138: 0 | Q138: 0
A139: >=55000; <60000 | B139: 60000 | C139: 0 | D139: 0 | E139: 0 | F139: 0 | G139: 0 | H139: 0 | I139: 0 | J139: 0 | K139: 0 | L139: 0 | M139: 0 | N139: 0 | O139: 0 | P139: 0 | Q139: 0
A140: >=60000; <65000 | B140: 65000 | C140: 0 | D140: 0 | E140: 0 | F140: 0 | G140: 0 | H140: 0 | I140: 0 | J140: 0 | K140: 0 | L140: 0 | M140: 0 | N140: 0 | O140: 0 | P140: 0 | Q140: 0
A141: >=65000; <70000 | B141: 70000 | C141: 0 | D141: 0 | E141: 0 | F141: 0 | G141: 0 | H141: 0 | I141: 0 | J141: 0 | K141: 0 | L141: 0 | M141: 0 | N141: 0 | O141: 0 | P141: 0 | Q141: 0
A142: >=70000; <75000 | B142: 75000 | C142: 0 | D142: 1 | E142: 0 | F142: 0 | G142: 0 | H142: 0 | I142: 0 | J142: 0 | K142: 0 | L142: 0 | M142: 0 | N142: 0 | O142: 0 | P142: 1 | Q142: 0
A143: >=75000; <80000 | B143: 80000 | C143: 0 | D143: 1 | E143: 0 | F143: 0 | G143: 1 | H143: 0 | I143: 0 | J143: 1 | K143: 0 | L143: 0 | M143: 1 | N143: 0 | O143: 0 | P143: 1 | Q143: 0
A144: >=80000; <85000 | B144: 85000 | C144: 1 | D144: 1 | E144: 0 | F144: 0 | G144: 1 | H144: 0 | I144: 0 | J144: 1 | K144: 0 | L144: 0 | M144: 1 | N144: 0 | O144: 1 | P144: 1 | Q144: 0
A145: >=85000; <90000 | B145: 90000 | C145: 1 | D145: 1 | E145: 0 | F145: 1 | G145: 1 | H145: 0 | I145: 1 | J145: 1 | K145: 0 | L145: 1 | M145: 1 | N145: 0 | O145: 1 | P145: 1 | Q145: 0
A146: >=90000; <95000 | B146: 95000 | C146: 1 | D146: 1 | E146: 1 | F146: 1 | G146: 1 | H146: 0 | I146: 1 | J146: 1 | K146: 0 | L146: 1 | M146: 1 | N146: 0 | O146: 1 | P146: 1 | Q146: 1
A147: >=95000; <100000 | B147: 100000 | C147: 1 | D147: 1 | E147: 1 | F147: 1 | G147: 1 | H147: 1 | I147: 1 | J147: 1 | K147: 1 | L147: 1 | M147: 1 | N147: 1 | O147: 1 | P147: 1 | Q147: 1
A148: >=100000; <105000 | B148: 105000 | C148: 1 | D148: 1 | E148: 1 | F148: 1 | G148: 1 | H148: 1 | I148: 1 | J148: 1 | K148: 1 | L148: 1 | M148: 1 | N148: 1 | O148: 1 | P148: 1 | Q148: 1
A149: >=105000; <110000 | B149: 110000 | C149: 1 | D149: 1 | E149: 1 | F149: 1 | G149: 1 | H149: 1 | I149: 1 | J149: 1 | K149: 1 | L149: 1 | M149: 1 | N149: 1 | O149: 1 | P149: 1 | Q149: 1
A150: >=110000; <115000 | B150: 115000 | C150: 1 | D150: 1 | E150: 1 | F150: 1 | G150: 1 | H150: 1 | I150: 1 | J150: 1 | K150: 1 | L150: 1 | M150: 1 | N150: 1 | O150: 1 | P150: 1 | Q150: 1
A151: >=115000; <120000 | B151: 120000 | C151: 1 | D151: 1 | E151: 1 | F151: 1 | G151: 1 | H151: 1 | I151: 1 | J151: 1 | K151: 1 | L151: 1 | M151: 1 | N151: 1 | O151: 1 | P151: 1 | Q151: 1
A152: >=120000; <125000 | B152: 125000 | C152: 1 | D152: 1 | E152: 1 | F152: 1 | G152: 1 | H152: 1 | I152: 1 | J152: 1 | K152: 1 | L152: 1 | M152: 1 | N152: 1 | O152: 1 | P152: 1 | Q152: 1
A153: >=125000; <130000 | B153: 130000 | C153: 1 | D153: 1 | E153: 1 | F153: 1 | G153: 1 | H153: 1 | I153: 1 | J153: 1 | K153: 1 | L153: 1 | M153: 1 | N153: 1 | O153: 1 | P153: 1 | Q153: 1
A154: >=130000; <135000 | B154: 135000 | C154: 1 | D154: 1 | E154: 1 | F154: 1 | G154: 1 | H154: 1 | I154: 1 | J154: 1 | K154: 1 | L154: 1 | M154: 1 | N154: 1 | O154: 1 | P154: 1 | Q154: 1
A155: >=135000; <140000 | B155: 140000 | C155: 1 | D155: 1 | E155: 1 | F155: 1 | G155: 1 | H155: 1 | I155: 1 | J155: 1 | K155: 1 | L155: 1 | M155: 1 | N155: 1 | O155: 1 | P155: 1 | Q155: 1
A156: >=140000; <145000 | B156: 145000 | C156: 1 | D156: 1 | E156: 1 | F156: 1 | G156: 1 | H156: 1 | I156: 1 | J156: 1 | K156: 1 | L156: 1 | M156: 1 | N156: 1 | O156: 1 | P156: 1 | Q156: 1
A157: =">"&B156 -> >145000 | B157: 150000 | C157: 1 | D157: 1 | E157: 1 | F157: 1 | G157: 1 | H157: 1 | I157: 1 | J157: 1 | K157: 1 | L157: 1 | M157: 1 | N157: 1 | O157: 1 | P157: 1 | Q157: 1
A159: Ekstrabusfaktor | B159: 29
A161: Tomkørsel | B161: Bybusser, provins/forstad | C161: Bybusser, København | D161: Landevejsbusser
A162: % af rutekm | B162: 0.09 | C162: 0.1 | D162: 0.11
A165: Chaufførkørsel i p-bil
A166: kWh/km | B166: 0.18
A167: kr./km | B167: 2.5
A168: Antal p-biler/bus | B168: 0.3
A169: km/p-bil | B169: 30000
A171: Garageanlæg | B171: Bybusser, provins/forstad | C171: Bybusser, København | D171: Landevejsbusser
A172: kr./bus/år | B172: 70000 | C172: 100000 | D172: 70000
B173: 9-11,8 | C173: 11,9-12,8 | D173: 12,9-13,2 | E173: 14,5-15 | F173: 18-18,8
B174: 1 | C174: 1 | D174: 1 | E174: 1.15 | F174: 1.4
A175: kr/år for skader
B176: km/år | C176: 75000
A177: Bybusser, provins | B177: kr./år | C177: 35000
A178: Bybusser, storkøbenhavn | B178: kr./år | C178: 45000
A179: Landevejsbusser | B179: kr./år | C179: 25000
A181: Busantal
A182: reservebusser, per x driftsbusser | B182: 10
A184: Pausefaciliteter
A185: kr./driftsbus/år | B185: 17000
A187: Busrengøring
A188: kr./driftsbus/år | B188: 30000
A190: DIESEL
A191: kr./l, inkl. moms | B191: 11.3
A193: HVO
A194: kr./l, inkl. moms | B194: 19.1
A196: EL
A197: kr./kWh, inkl. moms | B197: 1.2
A199: Brint | B199: 0 | C199: 45000 | D199: 50000 | E199: 55000 | F199: 60000 | G199: 65000 | H199: 70000 | I199: 75000 | J199: 80000 | K199: 85000 | L199: 90000 | M199: 95000 | N199: 100000 | O199: 105000 | P199: 110000 | Q199: 115000 | R199: 120000 | S199: 125000 | T199: 130000 | U199: 135000 | V199: 140000 | W199: 145000 | X199: 150000
A200: kr./kg, inkl. moms | B200: 39.1721 | C200: 38.9784 | D200: 38.7847 | E200: 38.591 | F200: 38.3973 | G200: 38.2036 | H200: 38.0099 | I200: 37.8162 | J200: 37.6225 | K200: 37.5033 | L200: 37.3841 | M200: 37.2649 | N200: 37.1457 | O200: 37.0265 | P200: 36.9665 | Q200: 36.9065 | R200: 36.8465 | S200: 36.7865 | T200: 36.7265 | U200: 36.6665 | V200: 36.6665 | W200: 36.6665 | X200: 36.6665
A202: ADBLUE
A203: kr./l, inkl. moms | B203: 5
A204: forbrug, %-diesel | B204: 0.07
A206: PRIS, OLIE, INKL. MOMS
A207: kr./l | B207: 75
A208: forbrug, %-diesel | B208: 0.002
A210: PRIS, DÆK, INKL. MOMS | B210: =El_fyr -> Elbus, HVO-fyr | C210: =El_el -> Elbus, 0-emis. opvarm. | D210: Elbus, endestation | E210: =Brintbus -> Brintbus | F210: Diesel
A211: dæklevetid, km | B211: =0.8*DækLeve -> 76000 | C211: =0.8*DækLeve -> 76000 | D211: =0.8*DækLeve -> 76000 | E211: =DækLeve -> 95000 | F211: 95000
A212: kr./stk. | B212: 3000
A214: CHAUFFØRLØN | B214: 1 | C214: 2 | D214: 3 | E214: 4 | F214: 5 | G214: 6 | H214: 7 | I214: 8 | J214: 9 | K214: 10 | L214: 11 | M214: 12 | N214: 13 | O214: 14
A215: kr./t | B215: 0 | C215: 1500 | D215: 2000 | E215: 2200 | F215: 2500 | G215: 2750 | H215: 3000 | I215: 3250 | J215: 3500 | K215: 3750 | L215: 4000 | M215: 4250 | N215: 4500 | O215: 100000
A216: Bybusser, provins/forstad | B216: 400 | C216: 400 | D216: 400 | E216: 400 | F216: 400 | G216: 400 | H216: 400 | I216: 400 | J216: 400 | K216: 400 | L216: 400 | M216: 400 | N216: 400 | O216: 400
A217: Bybusser, København | B217: 430 | C217: 430 | D217: 430 | E217: 430 | F217: 430 | G217: 430 | H217: 430 | I217: 430 | J217: 430 | K217: 430 | L217: 430 | M217: 430 | N217: 430 | O217: 430
A218: Landevejsbusser | B218: 390 | C218: 390 | D218: 390 | E218: 390 | F218: 390 | G218: 390 | H218: 390 | I218: 390 | J218: 390 | K218: 390 | L218: 390 | M218: 390 | N218: 390 | O218: 390
A220: AFKASTNINGSGRAD/PROFIT
A221: % | B221: 0.05
A223: CO2-udledning
A224: tank-til-hjul | B224: El | C224: Brint | D224: HVO | E224: Diesel
B225: kg CO2e/kWh | C225: kg CO2e/kg H2 | D225: kg CO2e/l | E225: kg CO2e/l
A226: CO2 | B226: 0 | C226: 0 | D226: 0 | E226: 2.44
A228: HASTIGHED | B228: Bybusser, provins/forstad | C228: Bybusser, København | D228: Landevejsbusser
A229: km/t | B229: 22 | C229: 19 | D229: 35
A231: Rente
A232: % | B232: 0.05
A234: Opsalg
A235: Øns. Buslæng. Opslag | B235: =MATCH(BusLænØns,BUSLÆNGDE,0) -> 2
A236: Ref. Buslæng. Opslag | B236: =MATCH(BusLænRef,BUSLÆNGDE,0) -> 2
A237: Drivmiddel opslag | B237: =MATCH(drivmiddel,ØnskLøs,0) -> 1
A238: Kørselstype opslag | B238: =MATCH(kørselØ,KØRSELSTYPE,0) -> 1
... 2 more rows

Sheet LISTER (hidden)
A1: KØRSELSTYPE | C1: ØNSKET LØSNING | F1: BUSLÆNGDE | H1: KLIMAANLÆG | K1: LADEEFFEKT, DEPOT | M1: LADEEFFEKT, BYRUM
A2: Bybusser, provins/forstad | C2: Elbus, HVO-fyr | D2: kWh/km | F2: 9-11,8 | H2: ja | K2: 50 | M2: 150
A3: Bybusser, København | C3: Elbus, 0-emis. opvarm. | D3: kWh/km | F3: 11,9-12,8 | H3: nej | K3: 60 (2*30) | M3: 300
A4: Landevejsbusser | C4: Elbus, endestation | D4: kWh/km | F4: 12,9-13,2 | K4: 75 | M4: 450
C5: Brintbus | D5: kg H2/100 km | F5: 14,5-15 | K5: 150 (2*75) | M5: 600
F6: 18-18,8 | K6: 240 (2*120)
